[Event "FIDE Grand Swiss 2023"]
[Site "Villa Marina, Douglas, Isle of Man"]
[Date "2023.10.29"]
[Round "5.49"]
[White "Fier, Alexandr"]
[Black "Van Foreest, Jorden"]
[Result "0-1"]
[WhiteElo "2574"]
[BlackElo "2707"]
[EventDate "2023.10.25"]
[ECO "E73"]
[PlyCount "126"]
[BlackFideId "1039784"]
[TimeControl "40/100 + 20/50 + 15 + 30s/move"]
[WhiteFideId "2107139"]

1.d4 {[%clk 01:40:57] [%emt 00:00:01]} 1...Nf6 {[%clk 01:40:22] [%emt 00:00:38]} 
2.c4 {[%clk 01:41:23] [%emt 00:00:04]} 2...g6 {[%clk 01:40:10] [%emt 00:00:43]} 
3.Nc3 {[%clk 01:41:49] [%emt 00:00:04]} 3...Bg7 {[%clk 01:39:57] [%emt
00:00:42]} 4.e4 {[%clk 01:42:14] [%emt 00:00:06]} 4...d6 {[%clk 01:39:55] [%emt
00:00:32]} 5.Be2 {[%clk 01:42:40] [%emt 00:00:04]} 5...O-O {[%clk 01:39:40]
[%emt 00:00:45]} 6.h4 {[%clk 01:43:06] [%emt 00:00:03]} 6...h5 {[%clk 01:39:00]
[%emt 00:01:10]} 7.Bg5 {[%clk 01:41:10] [%emt 00:02:27]} 7...Na6 {[%clk
01:36:10] [%emt 00:03:19]} 8.f3 {[%clk 01:37:19] [%emt 00:04:21]} 8...c6 {[%clk
01:35:10] [%emt 00:01:31]} 9.Qd2 {[%clk 01:37:19] [%emt 00:00:30]} 9...Nc7 
{[%clk 01:29:33] [%emt 00:06:07]} 10.Rd1 {[%clk 01:34:56] [%emt 00:02:53]} 
10...a6 {[%clk 01:24:11] [%emt 00:05:52]} 11.Nh3 {[%clk 01:31:44] [%emt
00:03:42]} 11...Bxh3 {[%clk 01:22:07] [%emt 00:02:34]} 12.Rxh3 {[%clk 01:32:09]
[%emt 00:00:04]} 12...Nd7 {[%clk 01:15:09] [%emt 00:07:29]} 13.Bh6 {[%clk
01:22:40] [%emt 00:09:59]} 13...b5 {[%clk 00:54:50] [%emt 00:20:49]} 14.Bxg7 
{[%clk 01:13:26] [%emt 00:09:44]} 14...Kxg7 {[%clk 00:55:12] [%emt 00:00:07]} 
15.c5 {[%clk 01:07:59] [%emt 00:05:58]} 15...Qe8 {[%clk 00:49:45] [%emt
00:05:57]} 16.f4 {[%clk 01:06:44] [%emt 00:01:45]} 16...Rd8 {[%clk 00:44:57]
[%emt 00:05:17]} 17.b4 {[%clk 01:02:47] [%emt 00:04:28]} 17...a5 {[%clk
00:45:08] [%emt 00:00:19]} 18.a3 {[%clk 01:02:22] [%emt 00:00:56]} 18...axb4 
{[%clk 00:43:34] [%emt 00:02:04]} 19.axb4 {[%clk 01:02:45] [%emt 00:00:06]} 
19...dxc5 {[%clk 00:43:21] [%emt 00:00:42]} 20.dxc5 {[%clk 01:01:18] [%emt
00:01:58]} 20...Nf6 {[%clk 00:43:14] [%emt 00:00:36]} 21.Rd3 {[%clk 00:56:51]
[%emt 00:04:58]} 21...Rxd3 {[%clk 00:42:57] [%emt 00:00:47]} 22.Qxd3 {[%clk
00:57:18] [%emt 00:00:03]} 22...Qa8 {[%clk 00:41:59] [%emt 00:01:28]} 23.f5 
{[%clk 00:45:29] [%emt 00:12:19]} 23...e5 {[%clk 00:38:44] [%emt 00:03:45]} 
24.fxg6 {[%clk 00:43:11] [%emt 00:02:48]} 24...fxg6 {[%clk 00:36:16] [%emt
00:02:57]} 25.Qd6 {[%clk 00:42:24] [%emt 00:01:17]} 25...Rf7 {[%clk 00:35:32]
[%emt 00:01:14]} 26.Qxe5 {[%clk 00:42:50] [%emt 00:00:05]} 26...Qa3 {[%clk
00:35:45] [%emt 00:00:17]} 27.Rd3 {[%clk 00:33:44] [%emt 00:09:36]} 27...Qa1+ 
{[%clk 00:32:31] [%emt 00:03:44]} 28.Bd1 {[%clk 00:33:06] [%emt 00:01:09]} 
28...Na6 {[%clk 00:28:33] [%emt 00:04:27]} 29.Rd2 {[%clk 00:26:06] [%emt
00:07:30]} 29...Nxb4 {[%clk 00:24:23] [%emt 00:04:40]} 30.Qd4 {[%clk 00:26:32]
[%emt 00:00:04]} 30...Qa5 {[%clk 00:17:50] [%emt 00:07:03]} 31.Rf2 {[%clk
00:25:52] [%emt 00:01:10]} 31...Na6 {[%clk 00:12:50] [%emt 00:05:31]} 32.e5 
{[%clk 00:16:42] [%emt 00:09:39]} 32...Nd5 {[%clk 00:12:24] [%emt 00:00:55]} 
33.e6+ {[%clk 00:17:02] [%emt 00:00:10]} 33...Rf6 {[%clk 00:12:39] [%emt
00:00:15]} 34.Rxf6 {[%clk 00:12:23] [%emt 00:05:10]} 34...Nxf6 {[%clk 00:13:03]
[%emt 00:00:06]} 35.e7 {[%clk 00:12:44] [%emt 00:00:09]} 35...Nc7 {[%clk
00:12:44] [%emt 00:00:49]} 36.Kf2 {[%clk 00:10:41] [%emt 00:02:34]} 36...Qa1 
{[%clk 00:10:57] [%emt 00:02:17]} 37.Ne2 {[%clk 00:05:15] [%emt 00:05:55]} 
37...Qa2 {[%clk 00:10:34] [%emt 00:00:53]} 38.Qe5 {[%clk 00:04:18] [%emt
00:01:27]} 38...Ne8 {[%clk 00:09:35] [%emt 00:01:29]} 39.Kg3 {[%clk 00:02:18]
[%emt 00:02:31]} 39...Qa3+ {[%clk 00:06:42] [%emt 00:03:23]} 40.Kh2 {[%clk
00:01:04] [%emt 00:01:43]} 40...Qe3 {[%clk 00:04:59] [%emt 00:02:11]} 41.Qxe3 
{[%clk 00:44:11] [%emt 00:07:24]} 41...Ng4+ {[%clk 00:55:17] [%emt 00:00:12]} 
42.Kg3 {[%clk 00:44:39] [%emt 00:00:03]} 42...Nxe3 {[%clk 00:55:40] [%emt
00:00:06]} 43.Bb3 {[%clk 00:45:08] [%emt 00:00:01]} 43...Nf5+ {[%clk 00:55:29]
[%emt 00:00:42]} 44.Kf4 {[%clk 00:45:35] [%emt 00:00:03]} 44...Kf6 {[%clk
00:55:35] [%emt 00:00:24]} 45.g3 {[%clk 00:45:14] [%emt 00:00:51]} 45...Nc7 
{[%clk 00:53:19] [%emt 00:02:45]} 46.e8=B {[%clk 00:42:11] [%emt 00:03:34]} 
46...Nxe8 {[%clk 00:53:38] [%emt 00:00:11]} 47.Nc3 {[%clk 00:42:39] [%emt
00:00:02]} 47...Nd4 {[%clk 00:49:23] [%emt 00:04:44]} 48.Ne4+ {[%clk 00:40:43]
[%emt 00:02:27]} 48...Ke7 {[%clk 00:48:52] [%emt 00:01:01]} 49.Ba2 {[%clk
00:39:49] [%emt 00:01:25]} 49...Nf6 {[%clk 00:47:48] [%emt 00:01:32]} 50.Nd2 
{[%clk 00:40:15] [%emt 00:00:05]} 50...Ne6+ {[%clk 00:44:56] [%emt 00:03:22]} 
51.Bxe6 {[%clk 00:40:22] [%emt 00:00:23]} 51...Kxe6 {[%clk 00:45:22] [%emt
00:00:04]} 52.Kg5 {[%clk 00:40:49] [%emt 00:00:03]} 52...Ke5 {[%clk 00:37:47]
[%emt 00:08:05]} 53.Kxg6 {[%clk 00:34:51] [%emt 00:06:27]} 53...Ne4 {[%clk
00:38:01] [%emt 00:00:16]} 54.Nf3+ {[%clk 00:35:17] [%emt 00:00:04]} 54...Kd5 
{[%clk 00:37:53] [%emt 00:00:37]} 55.g4 {[%clk 00:35:42] [%emt 00:00:07]} 
55...hxg4 {[%clk 00:36:12] [%emt 00:02:11]} 56.Ne1 {[%clk 00:35:58] [%emt
00:00:14]} 56...b4 {[%clk 00:35:34] [%emt 00:01:07]} 57.h5 {[%clk 00:36:26]
[%emt 00:00:03]} 57...b3 {[%clk 00:35:14] [%emt 00:00:49]} 58.Nd3 {[%clk
00:36:54] [%emt 00:00:02]} 58...g3 {[%clk 00:29:50] [%emt 00:05:55]} 59.h6 
{[%clk 00:37:18] [%emt 00:00:05]} 59...b2 {[%clk 00:30:03] [%emt 00:00:18]} 
60.h7 {[%clk 00:37:43] [%emt 00:00:05]} 60...b1=Q {[%clk 00:30:19] [%emt
00:00:14]} 61.Nf4+ {[%clk 00:38:11] [%emt 00:00:02]} 61...Ke5 {[%clk 00:30:19]
[%emt 00:00:29]} 62.h8=Q+ {[%clk 00:38:37] [%emt 00:00:04]} 62...Kxf4 {[%clk
00:30:00] [%emt 00:00:50]} 63.Qb8+ {[%clk 00:39:04] [%emt 00:00:03]} 63...Qxb8 
{[%clk 00:30:20]} 0-1

[Event "FIDE Grand Swiss 2023"]
[Site "Villa Marina, Douglas, Isle of Man"]
[Date "2023.10.29"]
[Round "5.50"]
[White "Krasenkow, Michal"]
[Black "Santos Latasa, Jaime"]
[Result "0-1"]
[WhiteElo "2531"]
[BlackElo "2650"]
[EventDate "2023.10.25"]
[ECO "E00"]
[PlyCount "104"]
[BlackFideId "2293307"]
[TimeControl "40/100 + 20/50 + 15 + 30s/move"]
[WhiteFideId "1113100"]

1.Nf3 {[%clk 01:40:56] [%emt 00:00:03]} 1...e6 {[%clk 01:40:41] [%emt 00:00:19]} 
2.c4 {[%clk 01:41:20] [%emt 00:00:06]} 2...d5 {[%clk 01:41:04] [%emt 00:00:06]} 
3.d4 {[%clk 01:41:44] [%emt 00:00:07]} 3...Nf6 {[%clk 01:41:25] [%emt 00:00:09]} 
4.g3 {[%clk 01:42:10] [%emt 00:00:04]} 4...Bb4+ {[%clk 01:41:36] [%emt
00:00:20]} 5.Bd2 {[%clk 01:42:34] [%emt 00:00:05]} 5...Be7 {[%clk 01:41:58]
[%emt 00:00:08]} 6.Bg2 {[%clk 01:42:59] [%emt 00:00:05]} 6...Nbd7 {[%clk
01:42:15] [%emt 00:00:13]} 7.O-O {[%clk 01:43:10] [%emt 00:00:18]} 7...O-O 
{[%clk 01:42:40] [%emt 00:00:06]} 8.Bg5 {[%clk 01:40:40] [%emt 00:03:01]} 
8...h6 {[%clk 01:41:53] [%emt 00:01:16]} 9.Bxf6 {[%clk 01:40:39] [%emt
00:00:31]} 9...Nxf6 {[%clk 01:42:16] [%emt 00:00:08]} 10.Ne5 {[%clk 01:39:48]
[%emt 00:01:20]} 10...c6 {[%clk 01:36:30] [%emt 00:06:16]} 11.Nc3 {[%clk
01:38:26] [%emt 00:01:52]} 11...Nd7 {[%clk 01:35:23] [%emt 00:01:37]} 12.Nxd7 
{[%clk 01:37:32] [%emt 00:01:24]} 12...Bxd7 {[%clk 01:35:33] [%emt 00:00:20]} 
13.Qb3 {[%clk 01:37:34] [%emt 00:00:28]} 13...Qb6 {[%clk 01:25:32] [%emt
00:10:32]} 14.e4 {[%clk 01:32:55] [%emt 00:05:08]} 14...dxc4 {[%clk 01:20:53]
[%emt 00:05:10]} 15.Qxc4 {[%clk 01:33:23] [%emt 00:00:02]} 15...c5 {[%clk
01:18:58] [%emt 00:02:24]} 16.d5 {[%clk 01:32:08] [%emt 00:01:44]} 16...Bf6 
{[%clk 01:18:52] [%emt 00:00:37]} 17.Rab1 {[%clk 01:26:51] [%emt 00:05:47]} 
17...Rac8 {[%clk 01:15:04] [%emt 00:04:18]} 18.Rfe1 {[%clk 01:19:29] [%emt
00:07:52]} 18...Bd4 {[%clk 01:13:27] [%emt 00:02:07]} 19.e5 {[%clk 01:16:34]
[%emt 00:03:25]} 19...Qa5 {[%clk 01:03:58] [%emt 00:09:59]} 20.Qd3 {[%clk
00:56:39] [%emt 00:20:25]} 20...b5 {[%clk 01:01:22] [%emt 00:03:07]} 21.a3 
{[%clk 00:45:59] [%emt 00:11:10]} 21...Qb6 {[%clk 00:57:21] [%emt 00:04:31]} 
22.Rbd1 {[%clk 00:43:43] [%emt 00:02:46]} 22...a5 {[%clk 00:57:09] [%emt
00:00:41]} 23.Rd2 {[%clk 00:39:26] [%emt 00:04:47]} 23...b4 {[%clk 00:48:20]
[%emt 00:09:19]} 24.axb4 {[%clk 00:39:45] [%emt 00:00:12]} 24...axb4 {[%clk
00:48:45] [%emt 00:00:05]} 25.dxe6 {[%clk 00:35:25] [%emt 00:04:50]} 25...Bxe6 
{[%clk 00:42:10] [%emt 00:07:05]} 26.Nd5 {[%clk 00:35:26] [%emt 00:00:28]} 
26...Qa7 {[%clk 00:42:19] [%emt 00:00:21]} 27.Nf4 {[%clk 00:28:49] [%emt
00:07:08]} 27...Rfd8 {[%clk 00:40:36] [%emt 00:02:12]} 28.Qe4 {[%clk 00:23:41]
[%emt 00:05:38]} 28...Bb3 {[%clk 00:37:35] [%emt 00:03:31]} 29.e6 {[%clk
00:21:58] [%emt 00:02:14]} 29...Re8 {[%clk 00:34:41] [%emt 00:03:23]} 30.Bh3 
{[%clk 00:21:24] [%emt 00:01:05]} 30...fxe6 {[%clk 00:31:07] [%emt 00:04:04]} 
31.Nxe6 {[%clk 00:21:21] [%emt 00:00:33]} 31...Qf7 {[%clk 00:30:31] [%emt
00:01:05]} 32.Rde2 {[%clk 00:09:38] [%emt 00:12:14]} 32...Bc4 {[%clk 00:25:21]
[%emt 00:05:39]} 33.Rc2 {[%clk 00:10:07] [%emt 00:00:01]} 33...Bb3 {[%clk
00:23:48] [%emt 00:02:03]} 34.Rce2 {[%clk 00:10:32] [%emt 00:00:05]} 34...Bc4 
{[%clk 00:17:11] [%emt 00:07:08]} 35.Rc2 {[%clk 00:11:01]} 35...Ba6 {[%clk
00:12:03] [%emt 00:05:38]} 36.Bf5 {[%clk 00:07:14] [%emt 00:04:16]} 36...Qf6 
{[%clk 00:09:33] [%emt 00:03:00]} 37.Qd5 {[%clk 00:06:12] [%emt 00:01:33]} 
37...Kh8 {[%clk 00:09:29] [%emt 00:00:34]} 38.Ra1 {[%clk 00:05:37] [%emt
00:01:05]} 38...Ra8 {[%clk 00:04:30] [%emt 00:05:28]} 39.Nf4 {[%clk 00:02:25]
[%emt 00:03:42]} 39...Bb7 {[%clk 00:03:31] [%emt 00:01:30]} 40.Rxa8 {[%clk
00:02:53] [%emt 00:00:02]} 40...Bxa8 {[%clk 00:03:54] [%emt 00:00:07]} 41.Re2 
{[%clk 00:03:10] [%emt 00:00:13]} 41...Rf8 {[%clk 00:47:34] [%emt 00:06:50]} 
42.Qe6 {[%clk 00:47:57] [%emt 00:05:42]} 42...Qxf5 {[%clk 00:47:25] [%emt
00:00:40]} 43.Qxf5 {[%clk 00:48:20] [%emt 00:00:07]} 43...Rxf5 {[%clk 00:47:50]
[%emt 00:00:04]} 44.Re8+ {[%clk 00:48:46] [%emt 00:00:05]} 44...Kh7 {[%clk
00:48:15] [%emt 00:00:05]} 45.Rxa8 {[%clk 00:49:12] [%emt 00:00:04]} 45...Bxb2 
{[%clk 00:48:33] [%emt 00:00:12]} 46.Ne6 {[%clk 00:48:46] [%emt 00:00:55]} 
46...c4 {[%clk 00:44:04] [%emt 00:05:00]} 47.Rc8 {[%clk 00:46:53] [%emt
00:02:23]} 47...c3 {[%clk 00:43:07] [%emt 00:01:27]} 48.Kf1 {[%clk 00:45:34]
[%emt 00:01:49]} 48...Rd5 {[%clk 00:41:26] [%emt 00:02:10]} 49.Nf4 {[%clk
00:41:19] [%emt 00:04:45]} 49...Rd6 {[%clk 00:40:03] [%emt 00:01:52]} 50.Ne2 
{[%clk 00:39:33] [%emt 00:02:18]} 50...Rd1+ {[%clk 00:39:36] [%emt 00:00:56]} 
51.Kg2 {[%clk 00:40:02] [%emt 00:00:02]} 51...Rd2 {[%clk 00:39:42] [%emt
00:00:24]} 52.Kf3 {[%clk 00:39:58] [%emt 00:00:33]} 52...c2 {[%clk 00:40:03]
[%emt 00:00:10]} 0-1

[Event "FIDE Grand Swiss 2023"]
[Site "Villa Marina, Douglas, Isle of Man"]
[Date "2023.10.29"]
[Round "5.51"]
[White "Warmerdam, Max"]
[Black "Sanal, Vahap"]
[Result "1-0"]
[WhiteElo "2636"]
[BlackElo "2603"]
[EventDate "2023.10.25"]
[ECO "D50"]
[PlyCount "51"]
[BlackFideId "6300545"]
[TimeControl "40/100 + 20/50 + 15 + 30s/move"]
[WhiteFideId "1048104"]

1.c4 {[%clk 01:40:56] [%emt 00:00:03]} 1...e6 {[%clk 01:40:51] [%emt 00:00:09]} 
2.Nc3 {[%clk 01:41:21] [%emt 00:00:05]} 2...d5 {[%clk 01:41:13] [%emt 00:00:08]} 
3.d4 {[%clk 01:41:47] [%emt 00:00:04]} 3...Nf6 {[%clk 01:40:41] [%emt 00:01:02]} 
4.Bg5 {[%clk 01:42:03] [%emt 00:00:14]} 4...dxc4 {[%clk 01:39:49] [%emt
00:01:23]} 5.e3 {[%clk 01:41:41] [%emt 00:00:52]} 5...c5 {[%clk 01:36:22] [%emt
00:03:57]} 6.Bxf6 {[%clk 01:36:39] [%emt 00:05:32]} 6...Qxf6 {[%clk 01:33:16]
[%emt 00:03:36]} 7.d5 {[%clk 01:35:57] [%emt 00:01:12]} 7...exd5 {[%clk
01:23:51] [%emt 00:09:54]} 8.Nxd5 {[%clk 01:35:58] [%emt 00:00:28]} 8...Qd8 
{[%clk 01:23:35] [%emt 00:00:46]} 9.Bxc4 {[%clk 01:36:13] [%emt 00:00:14]} 
9...Nc6 {[%clk 01:23:28] [%emt 00:00:39]} 10.Nf3 {[%clk 01:33:36] [%emt
00:03:07]} 10...Bd6 {[%clk 01:19:46] [%emt 00:04:12]} 11.O-O {[%clk 01:30:58]
[%emt 00:03:07]} 11...O-O {[%clk 01:19:39] [%emt 00:00:36]} 12.h3 {[%clk
01:22:04] [%emt 00:09:26]} 12...Be6 {[%clk 01:18:01] [%emt 00:02:07]} 13.e4 
{[%clk 01:16:11] [%emt 00:06:24]} 13...Ne5 {[%clk 01:16:07] [%emt 00:02:24]} 
14.Qb3 {[%clk 01:09:16] [%emt 00:07:25]} 14...Nxf3+ {[%clk 00:58:16] [%emt
00:18:21]} 15.Qxf3 {[%clk 01:09:38] [%emt 00:00:08]} 15...Qg5 {[%clk 00:54:40]
[%emt 00:04:05]} 16.Qe2 {[%clk 00:59:10] [%emt 00:10:59]} 16...Qe5 {[%emt
00:22:23]} 17.f4 {[%clk 00:58:25]} 17...Qd4+ {[%clk 00:34:28] [%emt 00:00:03]} 
18.Kh1 {[%clk 00:58:23] [%emt 00:00:33]} 18...b5 {[%clk 00:34:00] [%emt
00:00:58]} 19.Bxb5 {[%clk 00:58:29] [%emt 00:00:24]} 19...Bxd5 {[%clk 00:34:19]
[%emt 00:00:12]} 20.exd5 {[%clk 00:58:45] [%emt 00:00:14]} 20...Bxf4 {[%clk
00:25:09] [%emt 00:09:39]} 21.Rad1 {[%clk 00:57:38] [%emt 00:01:37]} 21...Qe5 
{[%clk 00:25:15] [%emt 00:00:24]} 22.d6 {[%clk 00:57:16] [%emt 00:00:52]} 
22...Rab8 {[%clk 00:16:45] [%emt 00:09:00]} 23.Qc4 {[%clk 00:52:44] [%emt
00:05:02]} 23...Be3 {[%clk 00:12:44] [%emt 00:04:31]} 24.d7 {[%clk 00:51:18]
[%emt 00:01:57]} 24...Bd4 {[%clk 00:12:01] [%emt 00:01:12]} 25.b4 {[%clk
00:50:56] [%emt 00:00:53]} 25...a6 {[%clk 00:06:14] [%emt 00:06:18]} 26.Bxa6 
{[%clk 00:45:16] [%emt 00:06:10]} 1-0

[Event "FIDE Grand Swiss 2023"]
[Site "Villa Marina, Douglas, Isle of Man"]
[Date "2023.10.29"]
[Round "5.52"]
[White "Gledura, Benjamin"]
[Black "Samunenkov, Ihor"]
[Result "1-0"]
[WhiteElo "2633"]
[BlackElo "2531"]
[EventDate "2023.10.25"]
[ECO "D11"]
[PlyCount "67"]
[BlackFideId "14187086"]
[TimeControl "40/100 + 20/50 + 15 + 30s/move"]
[WhiteFideId "712779"]

1.d4 {[%clk 01:40:56] [%emt 00:00:02]} 1...d5 {[%clk 01:40:50] [%emt 00:00:10]} 
2.c4 {[%clk 01:41:17] [%emt 00:00:09]} 2...c6 {[%clk 01:41:10] [%emt 00:00:10]} 
3.Nf3 {[%clk 01:41:24] [%emt 00:00:23]} 3...Nf6 {[%clk 01:41:26] [%emt
00:00:15]} 4.e3 {[%clk 01:41:32] [%emt 00:00:22]} 4...e6 {[%clk 01:41:41] [%emt
00:00:15]} 5.b3 {[%clk 01:41:23] [%emt 00:00:39]} 5...c5 {[%clk 01:41:49] [%emt
00:00:22]} 6.dxc5 {[%clk 01:38:35] [%emt 00:03:18]} 6...Bxc5 {[%clk 01:38:16]
[%emt 00:04:03]} 7.Bb2 {[%clk 01:38:39] [%emt 00:00:26]} 7...O-O {[%clk
01:34:32] [%emt 00:04:14]} 8.Nbd2 {[%clk 01:37:58] [%emt 00:01:11]} 8...Nc6 
{[%clk 01:26:26] [%emt 00:08:36]} 9.a3 {[%clk 01:33:26] [%emt 00:05:02]} 9...a5 
{[%clk 01:23:48] [%emt 00:03:08]} 10.Bd3 {[%clk 01:31:33] [%emt 00:02:23]} 
10...dxc4 {[%clk 01:08:00] [%emt 00:16:18]} 11.Bxc4 {[%clk 01:27:35] [%emt
00:04:28]} 11...b6 {[%clk 01:07:46] [%emt 00:00:44]} 12.Qb1 {[%clk 01:25:21]
[%emt 00:02:44]} 12...Nd5 {[%clk 00:58:28] [%emt 00:09:48]} 13.h4 {[%clk
01:22:17] [%emt 00:03:34]} 13...Qe7 {[%clk 00:48:53] [%emt 00:10:04]} 14.g4 
{[%clk 01:14:27] [%emt 00:08:20]} 14...f6 {[%clk 00:37:55] [%emt 00:11:29]} 
15.Bd3 {[%clk 01:05:58] [%emt 00:08:59]} 15...f5 {[%clk 00:31:56] [%emt
00:06:29]} 16.gxf5 {[%clk 00:51:27] [%emt 00:15:00]} 16...exf5 {[%clk 00:32:13]
[%emt 00:00:13]} 17.Bc4 {[%clk 00:51:30] [%emt 00:00:27]} 17...Be6 {[%clk
00:27:23] [%emt 00:05:21]} 18.Rg1 {[%clk 00:51:02] [%emt 00:00:57]} 18...Nf6 
{[%clk 00:19:43] [%emt 00:08:11]} 19.Qxf5 {[%clk 00:48:14] [%emt 00:03:18]} 
19...Bxc4 {[%clk 00:20:00] [%emt 00:00:12]} 20.Nxc4 {[%clk 00:47:33] [%emt
00:01:12]} 20...Rad8 {[%clk 00:20:14] [%emt 00:00:15]} 21.Ng5 {[%clk 00:38:21]
[%emt 00:09:42]} 21...Nd4 {[%clk 00:16:08] [%emt 00:04:36]} 22.Bxd4 {[%clk
00:37:41] [%emt 00:01:10]} 22...Bxd4 {[%clk 00:16:28] [%emt 00:00:11]} 23.O-O-O 
{[%clk 00:36:06] [%emt 00:02:04]} 23...Bc5 {[%clk 00:10:37] [%emt 00:06:22]} 
24.Qe6+ {[%clk 00:36:07] [%emt 00:00:28]} 24...Qxe6 {[%clk 00:09:56] [%emt
00:01:12]} 25.Nxe6 {[%clk 00:36:35] [%emt 00:00:02]} 25...Rxd1+ {[%clk
00:10:16]} 26.Kxd1 {[%clk 00:36:44] [%emt 00:00:31]} 26...Rf7 {[%clk 00:10:16]
[%emt 00:00:30]} 27.Nxc5 {[%clk 00:37:06] [%emt 00:00:08]} 27...bxc5 {[%clk
00:10:41] [%emt 00:00:05]} 28.Nxa5 {[%clk 00:35:28] [%emt 00:02:08]} 28...Ne4 
{[%clk 00:09:37] [%emt 00:01:33]} 29.f4 {[%clk 00:35:40] [%emt 00:00:19]} 
29...Rd7+ {[%clk 00:07:49] [%emt 00:01:00]} 30.Ke2 {[%clk 00:35:43] [%emt
00:05:10]} 30...Nc3+ {[%clk 00:06:37] [%emt 00:02:11]} 31.Kf3 {[%clk 00:36:01]
[%emt 00:00:11]} 31...Ra7 {[%clk 00:06:48] [%emt 00:00:19]} 32.Nc4 {[%clk
00:35:52] [%emt 00:00:40]} 32...Rb7 {[%clk 00:06:57] [%emt 00:00:20]} 33.Nd2 
{[%clk 00:36:05] [%emt 00:00:17]} 33...Rd7 {[%clk 00:06:38] [%emt 00:00:50]} 
34.Ne4 {[%clk 00:36:18] [%emt 00:00:17]} 1-0

[Event "FIDE Grand Swiss 2023"]
[Site "Villa Marina, Douglas, Isle of Man"]
[Date "2023.10.29"]
[Round "5.53"]
[White "Gurel, Ediz"]
[Black "Henriquez Villagra, Cristobal"]
[Result "1/2-1/2"]
[WhiteElo "2514"]
[BlackElo "2630"]
[EventDate "2023.10.25"]
[ECO "B38"]
[PlyCount "77"]
[BlackFideId "3409350"]
[TimeControl "40/100 + 20/50 + 15 + 30s/move"]
[WhiteFideId "44507356"]

1.e4 {[%clk 01:40:56] [%emt 00:00:04]} 1...c5 {[%clk 01:40:54] [%emt 00:00:06]} 
2.Nf3 {[%clk 01:41:17] [%emt 00:00:09]} 2...Nc6 {[%clk 01:41:18] [%emt
00:00:06]} 3.d4 {[%clk 01:41:35] [%emt 00:00:13]} 3...cxd4 {[%clk 01:41:40]
[%emt 00:00:07]} 4.Nxd4 {[%clk 01:42:01] [%emt 00:00:04]} 4...g6 {[%clk
01:42:03] [%emt 00:00:07]} 5.c4 {[%clk 01:42:17] [%emt 00:00:14]} 5...Bg7 
{[%clk 01:42:27] [%emt 00:00:06]} 6.Be3 {[%clk 01:42:38] [%emt 00:00:08]} 
6...Qb6 {[%clk 01:42:47] [%emt 00:00:10]} 7.Nb3 {[%clk 01:42:53] [%emt
00:00:15]} 7...Qd8 {[%clk 01:43:11] [%emt 00:00:06]} 8.Qd2 {[%clk 01:43:13]
[%emt 00:00:11]} 8...Nf6 {[%clk 01:43:15] [%emt 00:00:25]} 9.Nc3 {[%clk
01:43:38] [%emt 00:00:06]} 9...d6 {[%clk 01:43:20] [%emt 00:00:24]} 10.Be2 
{[%clk 01:43:33] [%emt 00:00:35]} 10...O-O {[%clk 01:40:28] [%emt 00:03:22]} 
11.O-O {[%clk 01:43:44] [%emt 00:00:20]} 11...Be6 {[%clk 01:29:27] [%emt
00:11:31]} 12.Nd4 {[%clk 01:34:43] [%emt 00:09:32]} 12...Nxd4 {[%clk 01:22:35]
[%emt 00:07:21]} 13.Bxd4 {[%clk 01:34:41] [%emt 00:00:32]} 13...Qa5 {[%clk
01:22:57] [%emt 00:00:08]} 14.Rad1 {[%clk 01:31:11] [%emt 00:04:00]} 14...Rfc8 
{[%clk 01:08:37] [%emt 00:14:50]} 15.b3 {[%clk 01:30:48] [%emt 00:00:54]} 
15...Ne8 {[%clk 00:57:09] [%emt 00:11:56]} 16.Bxg7 {[%clk 01:23:02] [%emt
00:08:17]} 16...Nxg7 {[%clk 00:57:04] [%emt 00:00:35]} 17.f4 {[%clk 01:19:51]
[%emt 00:03:41]} 17...f6 {[%clk 00:47:55] [%emt 00:09:39]} 18.Kh1 {[%clk
01:10:17] [%emt 00:10:05]} 18...Rab8 {[%clk 00:37:48] [%emt 00:10:37]} 19.Qe3 
{[%clk 01:06:14] [%emt 00:04:33]} 19...Qc5 {[%clk 00:36:44] [%emt 00:01:34]} 
20.Qg3 {[%clk 01:03:48] [%emt 00:02:56]} 20...Kh8 {[%clk 00:35:43] [%emt
00:01:31]} 21.Bd3 {[%clk 00:52:09] [%emt 00:12:09]} 21...Rf8 {[%clk 00:33:15]
[%emt 00:02:57]} 22.Bb1 {[%clk 00:50:01] [%emt 00:02:39]} 22...Bf7 {[%clk
00:27:36] [%emt 00:06:08]} 23.Qh4 {[%clk 00:42:58] [%emt 00:07:34]} 23...Qh5 
{[%clk 00:22:40] [%emt 00:05:26]} 24.Qf2 {[%clk 00:43:23] [%emt 00:00:05]} 
24...a6 {[%clk 00:21:46] [%emt 00:01:23]} 25.Rd3 {[%clk 00:39:47] [%emt
00:04:07]} 25...b5 {[%clk 00:21:29] [%emt 00:00:47]} 26.cxb5 {[%clk 00:37:24]
[%emt 00:02:53]} 26...axb5 {[%clk 00:18:52] [%emt 00:03:07]} 27.f5 {[%clk
00:33:29] [%emt 00:04:25]} 27...b4 {[%clk 00:16:32] [%emt 00:02:50]} 28.Rh3 
{[%clk 00:28:52] [%emt 00:05:07]} 28...Qg5 {[%clk 00:16:21] [%emt 00:00:41]} 
29.fxg6 {[%clk 00:26:17] [%emt 00:03:05]} 29...Bxg6 {[%clk 00:14:20] [%emt
00:02:30]} 30.Nd5 {[%clk 00:26:34] [%emt 00:00:14]} 30...e5 {[%clk 00:12:23]
[%emt 00:02:27]} 31.Rf3 {[%clk 00:20:33] [%emt 00:06:31]} 31...Nh5 {[%clk
00:07:50] [%emt 00:05:02]} 32.h4 {[%clk 00:18:25] [%emt 00:02:38]} 32...Qg4 
{[%clk 00:07:27] [%emt 00:00:53]} 33.Nxf6 {[%clk 00:17:00] [%emt 00:01:57]} 
33...Qxf3 {[%clk 00:07:32] [%emt 00:00:23]} 34.Qxf3 {[%clk 00:10:32] [%emt
00:06:58]} 34...Rxf6 {[%clk 00:07:56] [%emt 00:00:06]} 35.Qxf6+ {[%clk 00:11:00]
[%emt 00:00:03]} 35...Nxf6 {[%clk 00:08:21] [%emt 00:00:05]} 36.Rxf6 {[%clk
00:11:26] [%emt 00:00:04]} 36...Rc8 {[%clk 00:08:40] [%emt 00:00:10]} 37.Rf1 
{[%clk 00:06:50] [%emt 00:05:06]} 37...Rc3 {[%clk 00:07:21] [%emt 00:01:49]} 
38.Kg1 {[%clk 00:04:47] [%emt 00:02:34]} 38...Bh5 {[%clk 00:07:22] [%emt
00:00:29]} 39.Kf2 {[%clk 00:04:30] [%emt 00:00:46]} 1/2-1/2